bitfinex/quotes_SOLUSD_20241101
["timestamp","ask_amount","ask_price","bid_price","bid_amount"]
[1730437526208,5.9657,167.63,167.56,20.888]
[1730437526209,10.14490822,167.61,167.56,20.888]
[1730437531425,5.9657,167.63,167.56,20.888]
[1730437531426,10.14490822,167.6,167.56,20.888]
[1730437532418,10.14490822,167.61,167.56,31.03290822]
[1730437533520,10.14490822,167.6,167.56,31.03290822]
[1730437535031,10.14490822,167.6,167.56,20.888]
[1730437538931,9.64490822,167.6,167.56,20.888]
[1730437543138,10.14490822,167.59,167.56,20.888]
[1730437549332,10.14490822,167.6,167.56,20.888]
[1730437551022,11.18250669,167.61,167.56,20.888]
[1730437552244,10.14490822,167.59,167.56,20.888]
[1730437552644,10.14490822,167.6,167.56,20.888]
[1730437553025,11.18250669,167.61,167.56,20.888]
[1730437554631,10.14490822,167.6,167.56,20.888]
[1730437555146,11.18250669,167.61,167.56,20.888]
[1730437555547,10.14490822,167.6,167.56,20.888]
[1730437556331,11.18250669,167.61,167.56,20.888]
[1730437557052,10.14490822,167.61,167.56,20.888]
[1730437560753,10.14490822,167.61,167.57,0.12549]
[1730437560933,0.5828868,167.64,167.6,25.73430822]
[1730437561258,0.5828868,167.64,167.62,10.14490822]
[1730437562132,0.5828868,167.64,167.63,5.9655]
[1730437562340,0.5828868,167.64,167.62,20.8803]
[1730437563848,0.5828868,167.64,167.62,14.9145]
[1730437564152,10.14490822,167.63,167.6,21.5557]
[1730437564451,10.14490822,167.63,167.6,15.5894]
[1730437564752,10.14490822,167.63,167.59,5.9667]
[1730437565339,10.14490822,167.62,167.59,5.9667]
[1730437565935,10.14490822,167.62,167.58,14.9178]
[1730437566140,10.14490822,167.62,167.58,20.885]
[1730437568052,0.5828868,167.64,167.58,25.06270822]
[1730437568053,10.14490822,167.63,167.58,25.06270822]
[1730437568530,10.14490822,167.62,167.58,14.9178]
[1730437570240,10.14490822,167.62,167.58,20.885]
[1730437571630,10.14490822,167.59,167.58,14.9178]
[1730437571845,10.14490822,167.59,167.57,5.9676]
[1730437572132,0.5828868,167.64,167.58,10.14490822]
[1730437572328,0.5828868,167.64,167.6,10.14490822]
[1730437573359,0.5828868,167.64,167.6,16.11140822]
[1730437574635,10.14490822,167.63,167.6,5.9665]
[1730437574939,0.5828868,167.64,167.6,16.11140822]
[1730437576358,0.5828868,167.64,167.61,10.14490822]
[1730437576663,0.5828868,167.64,167.6,31.02780822]
[1730437579959,0.5828868,167.64,167.61,10.14490822]
[1730437580263,0.5828868,167.64,167.6,31.02780822]
[1730437586470,0.5828868,167.64,167.6,14.9164]
[1730437588043,0.5828868,167.64,167.6,20.8829]
[1730437588364,0.5828868,167.64,167.6,31.02780822]
[1730437591251,10.72779502,167.64,167.6,14.9164]
[1730437591851,10.14490822,167.63,167.6,14.9164]
[1730437593069,10.72779502,167.64,167.6,14.9164]
[1730437593787,10.72779502,167.64,167.6,20.8829]
[1730437596866,10.14490822,167.63,167.6,14.9164]
[1730437597478,10.14490822,167.63,167.59,5.9669]
[1730437597699,10.14490822,167.63,167.58,16.39170822]
[1730437597859,0.5828868,167.64,167.58,6.2468]
[1730437597860,10.14490822,167.62,167.58,6.2468]
[1730437599165,10.14490822,167.62,167.58,12.2139]
[1730437600387,10.14490822,167.61,167.58,6.2468]
[1730437600763,10.14490822,167.61,167.57,16.11240822]
[1730437600764,10.14490822,167.59,167.56,37.402]
[1730437601070,10.14490822,167.58,167.56,37.402]
[1730437601272,10.14490822,167.59,167.56,37.402]
[1730437603873,5.9655,167.63,167.54,18.27170974]
[1730437604177,10.14490822,167.57,167.54,12.0425]
[1730437604573,10.14490822,167.56,167.52,30.8102]
[1730437604768,10.14490822,167.56,167.53,5.969]
[1730437605269,10.14490822,167.57,167.53,5.969]
[1730437612791,10.14490822,167.55,167.52,36.7796]
[1730437613371,10.14490822,167.56,167.52,36.7796]
[1730437614470,11.18280483,167.57,167.52,46.92450822]
[1730437616675,10.14490822,167.56,167.52,36.7796]
[1730437618477,11.18280483,167.57,167.52,46.92450822]
[1730437619590,10.14490822,167.56,167.52,46.92450822]
[1730437621982,10.14490822,167.56,167.52,36.7796]
[1730437624894,10.14490822,167.54,167.52,15.8873]
[1730437625081,10.14490822,167.54,167.5,12.042]
[1730437626296,10.14490822,167.55,167.5,37.11220822]
[1730437630598,10.14490822,167.55,167.51,16.11460822]
[1730437632410,10.14490822,167.55,167.51,5.9697]
[1730437635224,10.14490822,167.55,167.5,37.11240822]
[1730437636607,10.14490822,167.56,167.5,37.11240822]
[1730437637703,16.11290822,167.56,167.51,10.14490822]
[1730437637898,5.968,167.56,167.51,10.14490822]
[1730437639905,5.9674,167.58,167.53,10.14490822]
[1730437640243,5.9674,167.58,167.54,10.14490822]
[1730437641297,16.11230822,167.58,167.52,25.06840822]
[1730437641499,10.14490822,167.57,167.52,25.06840822]
[1730437642592,10.14490822,167.55,167.5,12.0419]
[1730437642810,10.14490822,167.54,167.48,31.04240822]
[1730437643269,10.14490822,167.52,167.48,20.8975]
[1730437643525,10.14490822,167.52,167.48,14.9268]
[1730437644311,10.14490822,167.53,167.48,25.07170822]
[1730437644517,10.14490822,167.54,167.49,10.14490822]
[1730437644919,10.14490822,167.54,167.48,31.04250822]
[1730437645123,10.14490822,167.53,167.48,31.04250822]
[1730437646521,16.11400822,167.53,167.48,31.04250822]
[1730437647934,10.14490822,167.52,167.48,20.8976]
[1730437648811,10.14490822,167.53,167.48,20.8976]
[1730437651493,10.14490822,167.53,167.48,31.04250822]
[1730437652704,10.14490822,167.52,167.48,20.8976]
[1730437653192,10.14490822,167.52,167.48,14.9268]
[1730437656223,10.14490822,167.51,167.48,14.9268]
[1730437657317,10.14490822,167.51,167.47,15.1168]
[1730437657622,10.14490822,167.5,167.46,6.5016]
[1730437660107,10.14490822,167.51,167.46,6.5016]
[1730437663624,11.18315359,167.51,167.46,6.5016]
[1730437664718,10.14490822,167.5,167.46,6.5016]
[1730437673829,10.14490822,167.5,167.46,12.4731]
[1730437674637,1.03824537,167.51,167.46,12.4731]
[1730437674839,11.18315359,167.51,167.46,12.4731]
[1730437675935,11.18315359,167.51,167.46,22.61800822]
[1730437677543,11.18315359,167.51,167.46,12.4731]
[1730437680112,10.14490822,167.49,167.44,20.9025]
[1730437680333,10.14490822,167.48,167.44,20.9025]
[1730437681721,10.14490822,167.49,167.44,31.04740822]
[1730437683317,10.14490822,167.48,167.44,14.9304]
[1730437687540,16.11570822,167.48,167.44,14.9304]
[1730437688039,10.14490822,167.47,167.44,14.9304]
[1730437689343,10.14490822,167.47,167.43,22.3849]
[1730437689513,16.11570822,167.48,167.43,32.52980822]
[1730437690420,10.14490822,167.49,167.44,10.14490822]
[1730437690625,10.14490822,167.5,167.44,10.14490822]
[1730437690820,10.14490822,167.49,167.44,10.14490822]
[1730437693625,10.14490822,167.48,167.43,32.52980822]
[1730437693841,10.14490822,167.47,167.43,16.4124]
[1730437694629,10.14490822,167.46,167.43,16.4124]
[1730437694945,10.14490822,167.46,167.42,16.71280822]
[1730437695325,10.14490822,167.46,167.42,6.5679]
[1730437696038,10.14490822,167.45,167.4,31.05170822]
[1730437697048,16.11690822,167.45,167.4,31.05170822]
[1730437699133,10.14490822,167.46,167.41,10.14490822]
[1730437703451,16.11650822,167.46,167.41,10.14490822]
[1730437705448,16.11650822,167.46,167.42,10.14490822]
[1730437705836,16.11650822,167.46,167.41,10.14490822]
[1730437709744,10.14490822,167.45,167.41,10.14490822]
[1730437709948,10.14490822,167.46,167.41,10.14490822]
[1730437712856,10.14490822,167.45,167.41,10.14490822]
[1730437713553,10.14490822,167.46,167.42,10.14490822]
[1730437714559,10.14490822,167.45,167.41,10.14490822]
[1730437717957,10.14490822,167.45,167.4,31.05190822]
[1730437718467,10.14490822,167.45,167.41,10.14490822]
[1730437719838,10.14490822,167.45,167.4,31.05190822]
[1730437721637,10.14490822,167.43,167.4,14.9334]
[1730437721859,10.14490822,167.41,167.37,5.9746]
[1730437722072,10.14490822,167.41,167.36,25.08250822]
[1730437723662,10.14490822,167.39,167.34,22.14150822]
[1730437725146,10.14490822,167.38,167.33,10.14490822]
[1730437725356,10.14490822,167.36,167.31,10.14490822]
[1730437725664,0.2,167.41,167.29,16.36563914]
[1730437725665,10.14490822,167.34,167.29,16.36563914]
[1730437725964,10.14490822,167.34,167.29,10.14490822]
[1730437726777,10.14490822,167.33,167.28,25.08920822]
[1730437726946,10.14490822,167.31,167.26,31.61390822]
[1730437727141,10.14490822,167.31,167.26,10.14490822]
[1730437727957,10.14490822,167.31,167.25,16.12390822]
[1730437730854,10.14490822,167.31,167.26,10.14490822]
[1730437731337,5.9767,167.32,167.28,10.14490822]
[1730437731547,10.14490822,167.35,167.3,10.14490822]
[1730437731744,10.14490822,167.35,167.25,15.8987]
[1730437731943,1.03797344,167.37,167.28,10.14490822]
[1730437731944,10.14490822,167.33,167.28,10.14490822]
[1730437732362,10.14490822,167.32,167.27,10.14490822]
[1730437732570,10.14490822,167.31,167.26,16.12360822]
[1730437734355,16.12180822,167.31,167.26,10.14490822]
[1730437738670,10.14490822,167.3,167.25,32.02240822]
[1730437740874,10.14490822,167.31,167.26,10.14490822]
[1730437743271,10.14490822,167.3,167.25,32.02240822]
[1730437744169,10.14490822,167.29,167.25,21.8775]
[1730437745247,10.14490822,167.29,167.25,15.8987]
[1730437746372,10.14490822,167.29,167.25,21.8777]
[1730437746763,1.0368858,167.3,167.25,21.8777]
[1730437746971,10.14490822,167.29,167.25,21.8777]
[1730437747468,10.14490822,167.28,167.25,15.8987]
[1730437747785,10.14490822,167.28,167.24,6.5768]
[1730437749076,10.14490822,167.29,167.24,16.72170822]
[1730437750468,16.12260822,167.29,167.24,6.5768]
[1730437750978,16.12260822,167.29,167.24,16.72170822]
[1730437751670,16.12260822,167.29,167.24,6.5768]
[1730437751872,16.12290822,167.28,167.24,6.5768]
[1730437754377,10.14490822,167.27,167.22,10.14490822]
[1730437756484,10.14490822,167.28,167.23,10.14490822]
[1730437757280,10.14490822,167.29,167.24,10.14490822]
[1730437757462,10.14490822,167.28,167.23,10.14490822]
[1730437757879,33.92179222,167.29,167.23,10.14490822]
[1730437758076,10.14490822,167.27,167.22,10.14490822]
[1730437759269,16.12290822,167.28,167.23,10.14490822]
[1730437761580,16.12330822,167.27,167.22,10.14490822]
[1730437766393,16.12330822,167.27,167.21,31.46950822]
[1730437766781,10.14490822,167.25,167.21,15.3442]
[1730437766992,10.14490822,167.24,167.19,14.9524]
[1730437767291,10.14490822,167.23,167.19,14.9524]
[1730437767489,6.0784,167.27,167.19,14.9524]
[1730437767490,10.14490822,167.24,167.19,14.9524]
[1730437768190,10.14490822,167.23,167.19,14.9524]
[1730437769589,10.14490822,167.23,167.18,10.14490822]
[1730437769765,10.14490822,167.23,167.17,16.12670822]
[1730437770169,10.14490822,167.21,167.17,5.9818]
[1730437770588,10.14490822,167.21,167.16,31.95960822]
[1730437770773,10.14490822,167.21,167.16,37.94180822]
[1730437772797,10.14490822,167.22,167.17,10.14490822]
[1730437773289,10.14490822,167.21,167.16,37.94180822]
[1730437774369,16.12520822,167.22,167.16,27.7969]
[1730437774579,5.9803,167.22,167.18,10.14490822]
[1730437775277,10.14490822,167.25,167.19,10.14490822]
[1730437775481,23.776884,167.24,167.19,10.14490822]
[1730437775793,23.776884,167.24,167.2,10.14490822]
[1730437776177,23.776884,167.24,167.19,10.14490822]
[1730437776885,33.92179222,167.24,167.19,10.14490822]
[1730437778101,33.92179222,167.24,167.18,10.14490822]
[1730437778277,10.14490822,167.23,167.18,10.14490822]
[1730437779082,23.776884,167.24,167.2,10.14490822]
[1730437779809,10.14490822,167.23,167.18,10.14490822]
[1730437779981,16.12460822,167.23,167.18,10.14490822]
[1730437780401,5.9797,167.23,167.19,10.14490822]
[1730437781602,5.9797,167.23,167.2,10.14490822]
[1730437785001,5.9797,167.23,167.18,10.14490822]
[1730437787314,1.03722338,167.22,167.18,10.14490822]
[1730437787483,1.03722338,167.22,167.19,10.14490822]
[1730437788710,33.92179222,167.24,167.19,10.14490822]
[1730437789694,34.02179222,167.25,167.19,10.14490822]
[1730437790203,34.02179222,167.25,167.2,10.14490822]
[1730437791105,33.92179222,167.25,167.2,10.14490822]
[1730437791608,5.9794,167.24,167.2,10.14490822]
[1730437794389,5.9794,167.24,167.19,10.14490822]
[1730437800308,1.03711566,167.26,167.16,21.8147]
[1730437800514,1.03711566,167.26,167.25,10.14490822]
[1730437800715,11.73355392,167.27,167.24,10.14490822]
[1730437801013,11.18178401,167.29,167.24,10.14490822]
[1730437801209,11.18178401,167.29,167.23,10.14490822]
[1730437801599,10.14490822,167.28,167.23,10.14490822]
[1730437802491,23.776884,167.28,167.24,10.14490822]
[1730437802697,23.776884,167.28,167.23,10.14490822]
[1730437804517,29.754884,167.28,167.23,10.14490822]
[1730437805226,39.89979222,167.28,167.23,10.14490822]
[1730437806416,10.14490822,167.26,167.21,16.4097]
[1730437807611,5.979,167.25,167.21,16.4097]
[1730437807818,5.979,167.25,167.21,26.55460822]
[1730437810305,10.14490822,167.27,167.22,10.14490822]
[1730437810505,33.92179222,167.26,167.21,26.55460822]
[1730437810802,23.776884,167.26,167.22,10.14490822]
[1730437811119,23.776884,167.26,167.23,10.14490822]
[1730437811307,23.776884,167.27,167.23,10.14490822]
[1730437812712,23.776884,167.27,167.21,16.4097]
[1730437812713,23.776884,167.27,167.22,10.14490822]
[1730437814423,29.755184,167.27,167.22,10.14490822]
[1730437814718,39.90009222,167.27,167.22,10.14490822]
[1730437815631,39.90009222,167.27,167.21,26.55460822]
[1730437816204,23.776884,167.25,167.21,26.55460822]
[1730437817606,5.9794,167.24,167.21,26.55460822]
[1730437819519,10.14490822,167.27,167.22,10.14490822]
[1730437820217,10.82996505,167.28,167.22,10.14490822]
[1730437820910,23.776884,167.27,167.22,10.14490822]
[1730437821427,24.81276273,167.27,167.22,10.14490822]
[1730437821719,34.95767095,167.27,167.22,10.14490822]
[1730437822221,34.95767095,167.27,167.21,26.55460822]
[1730437822401,34.95767095,167.27,167.21,10.14490822]
[1730437822402,10.14490822,167.26,167.21,10.14490822]
[1730437822603,10.14490822,167.24,167.19,10.14490822]
[1730437822807,10.14490822,167.24,167.18,10.14490822]
[1730437823410,10.14490822,167.24,167.19,10.14490822]
[1730437823806,29.756284,167.24,167.19,10.14490822]
[1730437828221,5.9794,167.24,167.19,10.14490822]
[1730437829232,10.14490822,167.24,167.19,10.14490822]
[1730437829428,10.14490822,167.24,167.18,10.14490822]
[1730437831712,23.776884,167.23,167.18,10.14490822]
[1730437833125,29.756584,167.23,167.18,10.14490822]
[1730437835745,39.90149222,167.23,167.18,10.14490822]
[1730437836235,39.90149222,167.23,167.17,32.45640822]
[1730437836732,23.776884,167.21,167.17,32.45640822]
[1730437836924,23.776884,167.22,167.17,32.45640822]
[1730437837709,23.776884,167.22,167.18,10.14490822]
[1730437838538,23.776884,167.22,167.17,32.45640822]
[1730437841042,33.92179222,167.22,167.17,32.45640822]
[1730437841546,5.9805,167.21,167.17,32.45640822]
[1730437842043,5.9805,167.21,167.17,16.0953]
[1730437842931,16.12540822,167.21,167.16,10.14490822]
[1730437843123,23.776884,167.2,167.15,10.14490822]
[1730437843920,23.776884,167.2,167.16,10.14490822]
[1730437844220,5.9812,167.19,167.16,10.14490822]
[1730437844424,16.12610822,167.19,167.13,32.16380822]
[1730437845336,16.12610822,167.19,167.14,10.14490822]
[1730437846248,23.776884,167.18,167.14,10.14490822]
[1730437848323,23.776884,167.2,167.16,10.14490822]
[1730437849327,33.92179222,167.2,167.15,10.14490822]
[1730437849524,39.90259222,167.2,167.15,10.14490822]
[1730437850244,10.14490822,167.19,167.14,10.14490822]
[1730437850445,23.776884,167.17,167.13,22.0189]
[1730437850663,23.776884,167.17,167.13,32.16380822]
[1730437851644,5.9822,167.16,167.13,32.16380822]
[1730437855848,5.9822,167.16,167.15,10.14490822]
[1730437856853,5.9822,167.16,167.14,10.14490822]
[1730437857235,5.9822,167.16,167.15,10.14490822]
[1730437859558,5.9822,167.16,167.14,10.14490822]
[1730437862255,1.03561578,167.17,167.14,10.14490822]
[1730437862456,1.03561578,167.17,167.16,10.14490822]
[1730437863955,22.02088252,167.23,167.16,10.14490822]
[1730437864161,11.18043441,167.22,167.17,10.14490822]
[1730437865062,33.92179222,167.21,167.16,10.14490822]
[1730437865571,23.776884,167.21,167.16,10.14490822]
[1730437866149,34.02179222,167.21,167.16,10.14490822]
[1730437866357,33.92179222,167.19,167.14,10.14490822]
[1730437867435,5.9815,167.18,167.14,10.14490822]
[1730437872247,5.9815,167.18,167.13,22.0189]
[1730437872248,5.9815,167.18,167.15,10.14490822]
[1730437881273,0.34,167.16,167.15,10.14490822]
[1730437881756,0.34,167.16,167.14,10.14490822]
[1730437883569,23.776884,167.17,167.13,15.5171]
[1730437883775,23.776884,167.17,167.12,10.14490822]
[1730437884157,23.776884,167.17,167.13,10.14490822]
[1730437884362,1.0403733,167.16,167.13,10.14490822]
[1730437886476,0.34,167.14,167.13,10.14490822]
[1730437887271,0.34,167.14,167.12,10.14490822]
[1730437888979,0.34,167.14,167.1,10.14490822]
[1730437889279,6.323,167.14,167.1,10.14490822]
[1730437889655,6.323,167.14,167.11,10.14490822]
[1730437896175,6.323,167.14,167.1,10.14490822]
[1730437898086,16.46790822,167.14,167.1,10.14490822]
[1730437899785,6.323,167.14,167.1,10.14490822]
[1730437903586,5.983,167.14,167.1,10.14490822]
[1730437904563,1.04033797,167.13,167.1,10.14490822]
[1730437909495,7.02383797,167.13,167.1,10.14490822]
[1730437913880,33.92179222,167.15,167.1,10.14490822]
[1730437916616,23.776884,167.15,167.11,10.14490822]
[1730437917480,33.92179222,167.15,167.1,10.14490822]
[1730437918605,5.983,167.14,167.1,10.14490822]
[1730437921700,0.34,167.11,167.1,10.14490822]
[1730437924404,0.34,167.11,167.09,10.14490822]
[1730437925599,6.3241,167.11,167.09,10.14490822]
[1730437931911,0.34,167.11,167.1,10.14490822]
[1730437932612,0.34,167.11,167.1,32.13290822]
[1730437932801,1.0401303,167.16,167.1,47.09400822]
[1730437933110,1.0401303,167.16,167.14,10.14490822]
[1730437933317,10.14490822,167.2,167.15,10.14490822]
[1730437933612,11.18524494,167.2,167.15,10.14490822]
[1730437933801,23.776884,167.19,167.15,10.14490822]
[1730437934923,10.14490822,167.18,167.13,10.14490822]
[1730437936611,5.9819,167.17,167.13,10.14490822]
[1730437937413,33.92179222,167.19,167.14,10.14490822]
[1730437937603,5.9815,167.18,167.14,10.14490822]
[1730437944098,16.12640822,167.18,167.13,10.14490822]
[1730437944822,10.14490822,167.16,167.11,10.14490822]
[1730437945025,33.92179222,167.17,167.12,10.14490822]
[1730437945329,23.776884,167.17,167.12,10.14490822]
[1730437946220,23.776884,167.17,167.13,10.14490822]
[1730437947516,5.9822,167.16,167.12,10.14490822]
[1730437949424,5.9822,167.16,167.13,10.14490822]
[1730437950925,5.9822,167.16,167.12,10.14490822]
[1730437953917,1.04045263,167.15,167.12,10.14490822]
[1730437969338,1.04045263,167.15,167.11,10.14490822]
[1730437969643,10.14490822,167.14,167.09,10.14490822]
[1730437969817,10.14490822,167.16,167.1,10.14490822]
[1730437970012,1.04051496,167.15,167.11,10.14490822]
[1730437970209,1.04051496,167.15,167.12,10.14490822]
[1730437970415,23.776884,167.15,167.12,10.14490822]
[1730437972740,1.04049122,167.14,167.11,10.14490822]
[1730437973242,1.04049122,167.14,167.1,10.14490822]
[1730437974449,7.02349122,167.14,167.1,10.14490822]
[1730437986156,7.02349122,167.14,167.09,10.14490822]
[1730437986834,7.02349122,167.14,167.1,10.14490822]
[1730437987042,6.6633,167.13,167.1,10.14490822]
[1730437988356,6.6633,167.13,167.11,10.14490822]
[1730437988866,6.6633,167.13,167.08,27.4974]
[1730437988867,6.6633,167.13,167.1,10.14490822]
[1730437989653,6.6633,167.13,167.11,10.14490822]
[1730437989850,0.68,167.13,167.12,10.14490822]
[1730437990954,23.776884,167.18,167.12,10.14490822]
[1730437991133,33.92179222,167.18,167.13,10.14490822]
[1730437991435,0.68,167.14,167.13,10.14490822]
[1730437991845,33.92179222,167.18,167.13,10.14490822]
[1730437993563,29.758384,167.18,167.14,10.14490822]
[1730437994660,7.02158915,167.19,167.17,10.14490822]
[1730437994955,5.9805,167.21,167.17,10.14490822]
[1730437995146,5.9805,167.21,167.13,6.4946]
[1730437995147,16.12540822,167.21,167.16,10.14490822]
[1730437998450,10.14490822,167.2,167.15,10.14490822]
[1730437998665,10.14490822,167.2,167.13,12.4777]
[1730437998666,10.14490822,167.19,167.14,10.14490822]
[1730437999544,1.04016581,167.18,167.14,10.14490822]
[1730438000361,1.04016581,167.18,167.15,10.14490822]
[1730438001159,1.04016581,167.18,167.16,10.14490822]
[1730438001350,1.04016581,167.18,167.17,10.14490822]
[1730438004163,1.04016581,167.18,167.16,10.14490822]
[1730438004479,1.04016581,167.18,167.15,10.14490822]
[1730438007953,1.04016581,167.18,167.14,10.14490822]
[1730438008360,1.04016581,167.18,167.15,10.14490822]
[1730438009858,0.68,167.17,167.15,10.14490822]
[1730438010554,1.04016581,167.18,167.15,10.14490822]
[1730438013574,1.04016581,167.18,167.16,10.14490822]
[1730438015876,1.04016581,167.18,167.15,10.14490822]
[1730438022664,1.04016581,167.18,167.14,5.9828]
[1730438022665,1.04016581,167.18,167.16,10.14490822]
[1730438024866,1.04016581,167.18,167.15,10.14490822]
[1730438033675,1.04016581,167.18,167.14,16.12770822]
[1730438033873,10.14490822,167.18,167.13,16.63950822]
[1730438034268,10.14490822,167.17,167.12,10.14490822]
[1730438034684,10.14490822,167.17,167.13,10.14490822]
[1730438035895,10.14490822,167.18,167.13,10.14490822]
[1730438036274,0.68,167.16,167.13,10.14490822]
[1730438041389,0.68,167.16,167.14,10.14490822]
[1730438041686,0.68,167.16,167.15,10.14490822]
[1730438041903,1.04043177,167.2,167.15,10.14490822]
[1730438042084,1.04043177,167.2,167.17,10.14490822]
[1730438043291,1.04043177,167.2,167.16,10.14490822]
[1730438045493,5.9812,167.19,167.16,10.14490822]
[1730438047500,5.9812,167.19,167.15,10.14490822]
[1730438048035,10.14490822,167.18,167.13,10.14490822]
[1730438049499,16.12610822,167.19,167.14,10.14490822]
[1730438049803,23.776884,167.18,167.14,10.14490822]
[1730438053616,5.9819,167.17,167.14,10.14490822]
[1730438057300,1.04039402,167.16,167.14,10.14490822]
[1730438058398,1.04039402,167.16,167.13,10.14490822]
[1730438082721,39.90329222,167.18,167.13,10.14490822]
[1730438083741,39.90329222,167.18,167.12,16.12840822]
[1730438083944,10.14490822,167.17,167.11,40.52660822]
[1730438085029,39.90399222,167.16,167.11,40.52660822]
[1730438089231,10.14490822,167.15,167.11,30.3817]
[1730438089639,10.14490822,167.15,167.11,15.4216]
[1730438091551,33.92179222,167.14,167.1,6.3981]
[1730438091740,33.92179222,167.14,167.09,10.14490822]
[1730438093551,5.9833,167.13,167.09,10.14490822]
[1730438094840,16.12820822,167.13,167.08,10.14490822]
[1730438095749,5.9833,167.13,167.09,10.14490822]
[1730438097952,10.14490822,167.12,167.07,46.18830822]
[1730438101151,10.14490822,167.11,167.07,15.0951]
[1730438101456,10.14490822,167.11,167.07,25.24000822]
[1730438101944,16.12910822,167.11,167.07,25.24000822]
[1730438102256,10.14490822,167.11,167.07,25.24000822]
[1730438103256,10.14490822,167.08,167.06,6.9722868]
[1730438103932,10.14490822,167.07,167.06,0.5828868]
[1730438105547,16.13040822,167.07,167.06,0.5828868]
[1730438106158,40.94842593,167.07,167.06,0.5828868]
[1730438107047,60.94842593,167.07,167.06,0.5828868]
[1730438109254,1.04113371,167.07,167.06,0.5828868]
[1730438109762,1.04113371,167.07,167.06,10.72779502]
[1730438109966,10.14490822,167.11,167.06,16.71359502]
[1730438110262,1.04085258,167.09,167.06,16.71359502]
[1730438110854,1.04085258,167.09,167.08,10.14490822]
[1730438111060,1.04085258,167.09,167.08,16.13000822]
[1730438116460,16.12820822,167.13,167.08,16.13000822]
[1730438116655,1.04072509,167.12,167.08,16.13000822]
[1730438117259,1.04072509,167.12,167.07,10.14490822]
[1730438117462,1.04072509,167.12,167.07,16.13040822]
[1730438118060,11.18563331,167.12,167.07,16.13040822]
[1730438118262,10.14490822,167.11,167.07,5.9855]
[1730438118458,10.14490822,167.1,167.06,15.5474868]
[1730438118680,10.14490822,167.09,167.06,15.5474868]
[1730438118856,10.14490822,167.08,167.06,0.5828868]
[1730438119051,10.14490822,167.07,167.06,0.5828868]
[1730438119451,10.14490822,167.08,167.06,0.5828868]
[1730438122477,10.14490822,167.07,167.06,0.5828868]
[1730438123152,33.92179222,167.07,167.06,0.5828868]
[1730438124376,39.90729222,167.07,167.06,0.5828868]
[1730438139289,40.94862625,167.07,167.06,0.5828868]
[1730438143582,0.1,167.05,166.95,32.05180822]
[1730438143891,10.14490822,166.99,166.95,27.8966]
[1730438148395,10.14490822,166.98,166.95,27.8966]
[1730438148597,40.57963288,167.04,166.95,15.3386]
[1730438148598,10.14490822,166.97,166.95,15.3386]
[1730438148787,10.14490822,166.96,166.95,15.3386]
[1730438149700,10.14490822,166.96,166.92,21.5018]
[1730438149886,10.14490822,166.95,166.92,21.5018]
[1730438150887,10.14490822,166.95,166.92,6.5253]
[1730438152184,10.14490822,166.96,166.92,6.5253]
[1730438152382,10.14490822,166.98,166.93,10.14490822]
[1730438152608,10.14490822,166.98,166.92,12.516]
[1730438152609,16.13290822,167.0,166.95,10.14490822]
[1730438152984,10.14490822,167.0,166.95,10.14490822]
[1730438153601,10.14490822,166.97,166.92,14.9772]
[1730438153908,5.9877,167.01,166.92,14.9772]
[1730438153909,10.14490822,166.95,166.92,14.9772]
[1730438154111,10.14490822,166.96,166.92,14.9772]
[1730438155998,10.14490822,166.95,166.9,16.97144548]
[1730438156199,10.14490822,166.95,166.9,22.96304548]
[1730438156400,10.14490822,166.95,166.9,16.71939502]
[1730438156713,10.14490822,166.94,166.9,0.5828868]
[1730438157807,10.14490822,166.95,166.9,0.5828868]
[1730438158687,10.14490822,166.91,166.9,0.5828868]
[1730438172503,7.03301996,166.92,166.9,0.5828868]
[1730438172504,1.04201996,166.92,166.9,0.5828868]
[1730438172705,10.14490822,166.94,166.9,0.5828868]
[1730438173022,10.14490822,166.94,166.9,21.5531868]
[1730438174004,10.14490822,166.93,166.9,21.5531868]
[1730438174705,10.14490822,166.92,166.9,21.5531868]
[1730438175713,10.14490822,166.94,166.9,21.5531868]
[1730438176119,10.14490822,166.93,166.9,21.5531868]
[1730438179024,10.14490822,166.92,166.9,21.5531868]
[1730438179607,10.14490822,166.91,166.9,15.5618868]
[1730438179822,10.14490822,166.92,166.9,15.5618868]
[1730438180127,10.14490822,166.93,166.9,15.5618868]
[1730438180423,10.14490822,166.93,166.9,21.5534868]
[1730438181128,1.04168018,166.97,166.9,21.5534868]
[1730438181129,10.14490822,166.92,166.9,15.5618868]
[1730438181830,10.14490822,166.93,166.9,15.5618868]
[1730438182620,10.14490822,166.94,166.9,21.5534868]
[1730438182830,11.1865884,166.97,166.91,10.14490822]
[1730438183427,10.14490822,166.96,166.91,10.14490822]
[1730438183637,11.1865884,166.97,166.93,6.4043]
[1730438184723,10.14490822,166.96,166.93,6.4043]